bitfinex-derivatives/quotes_BTCF0:USTF0_20241008
["timestamp","ask_amount","ask_price","bid_price","bid_amount"]
[1728403351578,0.340292,62294.0,62293.0,0.3608]
[1728403352182,0.351292,62294.0,62293.0,0.3608]
[1728403352377,0.351292,62294.0,62293.0,0.42465072]
[1728403352587,0.832892,62294.0,62293.0,0.3608]
[1728403352781,0.832892,62294.0,62282.0,0.3608]
[1728403352782,0.832892,62294.0,62289.0,0.06385072]
[1728403352983,0.080299,62289.0,62288.0,0.06385072]
[1728403353185,0.0803,62288.0,62287.0,0.06385072]
[1728403353385,0.080304,62285.0,62283.0,0.06385072]
[1728403353593,0.080304,62285.0,62282.0,0.42465072]
[1728403353594,0.080306,62283.0,62282.0,0.42465072]
[1728403353781,0.080306,62283.0,62282.0,0.441108]
[1728403354103,0.080303,62287.0,62282.0,0.3608]
[1728403354282,0.080303,62287.0,62283.0,0.14413165]
[1728403354283,0.080306,62284.0,62283.0,0.14413165]
[1728403354484,0.080306,62284.0,62283.0,0.06382665]
[1728403354693,0.080306,62284.0,62283.0,0.06378665]
[1728403355286,0.080306,62283.0,62282.0,0.442508]
[1728403355501,0.080306,62283.0,62282.0,0.441108]
[1728403355798,0.088306,62283.0,62282.0,0.441108]
[1728403356481,0.096306,62283.0,62282.0,0.442108]
[1728403357200,0.096306,62283.0,62271.0,0.039]
[1728403357201,0.080322,62271.0,62270.0,0.36228]
[1728403357385,0.3608,62278.0,62269.0,0.080324]
[1728403357586,0.3608,62278.0,62268.0,0.3608]
[1728403357587,0.080324,62270.0,62268.0,0.3608]
[1728403357782,0.080324,62270.0,62269.0,0.080323]
[1728403358391,0.080313,62280.0,62279.0,0.080308]
[1728403358590,0.01739767,62283.0,62274.0,0.3608]
[1728403358790,0.088307,62283.0,62282.0,0.080308]
[1728403358993,0.080307,62283.0,62282.0,0.080308]
[1728403359401,0.340307,62283.0,62282.0,0.080308]
[1728403359693,0.26,62283.0,62279.0,0.080311]
[1728403359896,0.27,62283.0,62282.0,0.080308]
[1728403360396,0.350306,62283.0,62282.0,0.080308]
[1728403360800,0.358306,62283.0,62282.0,0.080308]
[1728403361391,0.080309,62281.0,62280.0,0.3608]
[1728403361597,0.080309,62281.0,62280.0,0.44111]
[1728403362300,0.080309,62281.0,62280.0,0.3608]
[1728403362509,0.080309,62281.0,62280.0,0.44111]
[1728403362705,0.101309,62281.0,62280.0,0.44111]
[1728403363697,0.101309,62281.0,62280.0,0.3608]
[1728403364493,0.101309,62281.0,62280.0,0.44111]
[1728403367997,0.021,62281.0,62280.0,0.44111]
[1728403369903,0.021,62281.0,62280.0,0.64111]
[1728403370110,0.080299,62289.0,62280.0,1.84204827]
[1728403370304,0.080299,62289.0,62288.0,0.0803]
[1728403370518,0.080305,62286.0,62285.0,0.080304]
[1728403371904,0.080305,62286.0,62280.0,0.3618]
[1728403372098,0.080308,62284.0,62283.0,0.08013568]
[1728403372405,0.080308,62284.0,62283.0,0.11935355]
[1728403372907,0.308302,62286.0,62285.0,0.001]
[1728403373108,0.294302,62286.0,62285.0,0.001]
[1728403373316,1.375942,62286.0,62285.0,0.001]
[1728403373806,0.087305,62284.0,62283.0,0.002]
[1728403374416,1.168985,62284.0,62283.0,0.002]
[1728403374603,1.168985,62284.0,62275.0,0.44098023]
[1728403374804,0.080315,62276.0,62275.0,0.08018023]
[1728403375005,0.080315,62276.0,62273.0,0.08018023]
[1728403375209,0.080319,62273.0,62270.0,0.08018023]
[1728403375406,0.080324,62269.0,62268.0,0.44098023]
[1728403375608,0.340324,62269.0,62268.0,0.3608]
[1728403377204,0.340324,62269.0,62268.0,0.3628]
[1728403377410,0.340324,62269.0,62268.0,0.002]
[1728403377717,0.340324,62269.0,62268.0,0.005]
[1728403378108,0.34982536,62269.0,62268.0,0.005]
[1728403380108,0.080333,62262.0,62261.0,0.44098023]
[1728403380309,0.080333,62262.0,62254.0,0.441143]
[1728403380310,0.080339,62258.0,62257.0,0.08018023]
[1728403380608,0.08034,62257.0,62256.0,0.08018023]
[1728403380809,0.080341,62256.0,62255.0,0.080342]
[1728403381209,0.080342,62255.0,62254.0,0.44234023]
[1728403381414,0.080342,62255.0,62254.0,0.52132423]
[1728403381616,0.080342,62255.0,62254.0,0.441144]
[1728403383321,0.081342,62255.0,62254.0,0.441144]
[1728403383519,0.081342,62255.0,62254.0,0.3608]
[1728403383721,0.081342,62255.0,62254.0,0.441144]
[1728403384412,0.081342,62255.0,62254.0,0.441104]
[1728403384614,0.46084,62257.0,62256.0,0.080341]
[1728403384615,0.00084,62257.0,62256.0,0.080341]
[1728403384818,0.00961993,62274.0,62270.0,0.080323]
[1728403385018,0.3608,62276.0,62275.0,0.080317]
[1728403385019,0.441116,62276.0,62275.0,0.080317]
[1728403385217,0.6208,62276.0,62275.0,0.280317]
[1728403385427,0.080306,62283.0,62282.0,0.080305]
[1728403385626,0.0405,62287.0,62280.0,0.2]
[1728403385818,0.080306,62284.0,62283.0,0.080305]
[1728403386014,0.46,62284.0,62277.0,0.3608]
[1728403386215,0.080313,62278.0,62277.0,0.3608]
[1728403386825,0.080313,62278.0,62271.0,0.08000077]
[1728403387013,0.080322,62271.0,62267.0,0.16032677]
[1728403387217,0.080322,62271.0,62267.0,0.08000077]
[1728403387520,0.080322,62271.0,62270.0,0.441123]
[1728403387825,0.080322,62271.0,62270.0,0.3608]
[1728403389122,0.094322,62271.0,62270.0,0.3618]
[1728403389427,0.11805243,62271.0,62270.0,0.442123]
[1728403389627,0.11805243,62271.0,62270.0,0.3618]
[1728403389819,0.10405243,62271.0,62270.0,0.3608]
[1728403390019,0.11805243,62271.0,62270.0,0.3618]
[1728403390428,0.108322,62271.0,62270.0,0.3618]
[1728403390631,0.028,62271.0,62270.0,0.442123]
[1728403390824,0.0803,62288.0,62270.0,1.523883]
[1728403390825,0.6596,62284.0,62270.0,1.523883]
[1728403391026,0.080308,62282.0,62281.0,0.080307]
[1728403391526,0.26977753,62284.0,62283.0,0.080306]
[1728403391736,0.26,62284.0,62283.0,0.080306]
[1728403392920,0.354305,62284.0,62283.0,0.080306]
[1728403393116,0.080314,62277.0,62276.0,0.3608]
[1728403393318,0.080314,62277.0,62276.0,0.441115]
[1728403393623,0.080314,62277.0,62276.0,0.3608]
[1728403394021,0.080314,62277.0,62276.0,0.441115]
[1728403395427,0.080314,62277.0,62276.0,0.443115]
[1728403395622,0.390314,62277.0,62276.0,0.002]
[1728403395825,0.080314,62277.0,62276.0,0.002]
[1728403397228,0.0899877,62277.0,62276.0,0.002]
[1728403398225,0.1099877,62277.0,62276.0,0.002]
[1728403398421,0.02,62277.0,62276.0,0.082315]
[1728403398625,0.02,62277.0,62276.0,0.443115]
[1728403399129,0.02,62277.0,62276.0,0.45285504]
[1728403399432,0.01992,62277.0,62276.0,0.45285504]
[1728403400529,0.100234,62277.0,62276.0,0.3628]
[1728403400727,0.410234,62277.0,62276.0,0.3628]
[1728403400932,0.409314,62277.0,62276.0,0.3628]
[1728403401133,0.669314,62277.0,62276.0,0.3628]
[1728403401927,0.359314,62277.0,62276.0,0.3628]
[1728403402433,0.359314,62277.0,62276.0,0.443115]
[1728403404636,0.279,62277.0,62276.0,0.443115]
[1728403405026,0.359314,62277.0,62276.0,0.443115]
[1728403405533,0.359314,62277.0,62276.0,0.3628]
[1728403407230,0.359314,62277.0,62276.0,0.002]
[1728403408942,0.400214,62277.0,62276.0,0.002]
[1728403412437,0.600214,62277.0,62276.0,0.002]
[1728403412737,0.600214,62277.0,62264.0,0.08033]
[1728403412738,1.00162,62277.0,62264.0,0.08000077]
[1728403412936,1.00162,62277.0,62248.0,0.11118441]
[1728403412937,0.080342,62255.0,62254.0,0.44080077]
[1728403413145,0.280342,62255.0,62254.0,0.3608]
[1728403413439,0.540342,62255.0,62254.0,0.3608]
[1728403413636,0.26,62255.0,62254.0,0.441144]
[1728403413939,0.340342,62255.0,62254.0,0.441144]
[1728403414139,0.340342,62255.0,62254.0,0.3608]
[1728403414631,0.340342,62255.0,62254.0,0.3618]
[1728403415333,0.340342,62255.0,62254.0,0.4259122]
[1728403415836,0.540342,62255.0,62254.0,0.4259122]
[1728403416439,0.340342,62255.0,62254.0,0.3618]
[1728403418332,0.340342,62255.0,62254.0,0.001]
[1728403419348,0.080349,62250.0,62249.0,0.0641122]
[1728403419643,0.080349,62250.0,62248.0,0.3608]
[1728403419644,0.08035,62249.0,62248.0,0.3608]
[1728403421237,0.08235,62249.0,62248.0,0.3608]
[1728403421438,0.08335,62249.0,62248.0,0.3608]
[1728403422638,0.080357,62244.0,62243.0,0.3608]
[1728403424035,0.082357,62244.0,62243.0,0.3608]
[1728403424440,0.084357,62244.0,62243.0,0.3608]
[1728403425949,0.084357,62244.0,62237.0,0.04796137]
[1728403426141,0.084357,62244.0,62236.0,0.04796137]
[1728403426142,0.080364,62238.0,62236.0,0.04796137]
[1728403426353,0.080371,62233.0,62232.0,0.04796137]
[1728403426653,0.080372,62232.0,62231.0,0.20683437]
[1728403427146,0.080372,62232.0,62231.0,0.080373]
[1728403428055,0.081372,62232.0,62231.0,0.005]
[1728403428347,0.57408965,62232.0,62231.0,0.005]
[1728403428545,0.17850965,62232.0,62231.0,0.005]
[1728403429146,0.17850965,62232.0,62228.0,0.3608]
[1728403429147,0.48208,62231.0,62213.0,0.04796137]
[1728403429447,1.51471765,62232.0,62208.0,0.080402]
[1728403429448,0.6708,62214.0,62208.0,0.04796137]
[1728403429650,0.6708,62214.0,62204.0,0.1052122]
[1728403429651,0.080404,62207.0,62204.0,0.0411]
[1728403429948,0.3608,62209.0,62208.0,0.080403]
[1728403430545,0.40096445,62209.0,62208.0,0.004]
[1728403431242,0.40096445,62209.0,62204.0,0.0411]
[1728403431443,0.080407,62205.0,62204.0,0.0411]
[1728403431748,0.340407,62205.0,62204.0,0.0411]
[1728403433953,0.341407,62205.0,62204.0,0.0411]
[1728403434454,0.342407,62205.0,62204.0,0.0411]
[1728403434759,0.40096545,62209.0,62208.0,0.080403]
[1728403435953,0.080405,62207.0,62204.0,0.121507]
[1728403436251,0.080405,62207.0,62206.0,0.080406]
[1728403436852,0.2,62208.0,62204.0,0.0411]
[1728403437053,0.080407,62205.0,62204.0,0.0411]
[1728403437252,0.280407,62205.0,62204.0,0.0421]
[1728403437745,0.280407,62205.0,62198.0,0.080415]
[1728403437948,0.080417,62197.0,62196.0,0.3608]
[1728403438252,0.080417,62197.0,62195.0,0.17248037]
[1728403438253,0.080419,62196.0,62195.0,0.0441]
[1728403438750,0.280419,62196.0,62195.0,0.0441]
[1728403438956,0.280419,62196.0,62189.0,0.40876137]
[1728403439159,0.080422,62194.0,62193.0,0.080421]
[1728403439850,0.642058,62197.0,62196.0,0.080419]
[1728403440049,0.641218,62197.0,62196.0,0.080419]
[1728403440249,1.123578,62197.0,62196.0,0.080419]
[1728403440456,0.080421,62194.0,62193.0,0.001]
[1728403440753,0.563781,62194.0,62193.0,0.002]
[1728403441060,0.563781,62194.0,62193.0,0.001]
[1728403441251,0.080426,62190.0,62189.0,0.3608]
[1728403441454,0.540426,62190.0,62189.0,0.441228]
[1728403441656,0.540426,62190.0,62180.0,0.04796137]
[1728403441657,0.8208,62190.0,62180.0,0.04796137]
[1728403441854,0.3608,62182.0,62181.0,0.080438]
[1728403442754,0.441237,62182.0,62181.0,0.080438]
[1728403443447,0.641237,62182.0,62181.0,0.080438]
[1728403443655,0.447237,62182.0,62181.0,0.080438]
[1728403444154,0.5668,62182.0,62180.0,0.04796137]
[1728403444355,0.080446,62175.0,62168.0,0.042]
[1728403444549,0.641238,62181.0,62172.0,0.08045]
[1728403444550,0.3608,62176.0,62172.0,0.08045]
[1728403444751,0.080449,62173.0,62171.0,0.08045]
[1728403444956,0.36164,62181.0,62169.0,0.2]
[1728403445153,0.080442,62178.0,62177.0,0.080442]
[1728403445555,0.3608,62181.0,62172.0,0.4249122]
[1728403445754,0.080448,62173.0,62172.0,0.4249122]
[1728403446054,0.080448,62174.0,62173.0,0.080448]
[1728403446253,0.3608,62175.0,62170.0,0.080452]
[1728403446254,0.080448,62173.0,62170.0,0.080452]
[1728403446461,0.080452,62170.0,62169.0,0.0641122]
[1728403446660,0.5608,62170.0,62168.0,0.0641122]
[1728403446857,0.080461,62163.0,62162.0,0.0641122]
[1728403447058,0.280461,62163.0,62160.0,0.0414]
[1728403447251,0.080464,62161.0,62160.0,0.0414]
[1728403447753,0.280461,62163.0,62155.0,0.15429509]
[1728403447754,0.2,62163.0,62155.0,0.0641122]
[1728403447953,0.080472,62155.0,62153.0,0.5463852]
[1728403448257,0.2,62159.0,62150.0,0.06360109]
[1728403448258,0.080477,62151.0,62150.0,0.06360109]
[1728403448455,0.080478,62150.0,62149.0,0.0024135]
[1728403448857,0.340478,62150.0,62149.0,0.0024135]
[1728403449652,0.26,62150.0,62149.0,0.0828925]
[1728403449852,0.261,62150.0,62149.0,0.0828925]
[1728403450149,0.262,62150.0,62149.0,1.5264125]
[1728403450361,0.3608,62166.0,62149.0,1.56749776]
[1728403450563,0.3608,62166.0,62165.0,0.080459]
[1728403451367,0.441257,62166.0,62165.0,0.080459]
[1728403451960,0.080454,62169.0,62168.0,0.080453]
[1728403452259,0.3608,62171.0,62166.0,0.31]
[1728403452464,0.3608,62171.0,62170.0,0.080452]
[1728403452855,0.3608,62171.0,62170.0,0.390452]
[1728403453159,0.080452,62170.0,62169.0,0.06353205]
[1728403453460,0.3608,62171.0,62168.0,0.06353205]
[1728403453667,0.3608,62178.0,62172.0,0.08045]
[1728403453668,0.080449,62173.0,62172.0,0.08045]
[1728403453962,0.441249,62173.0,62172.0,0.08045]
[1728403454351,0.84332,62173.0,62170.0,0.06353205]
[1728403454552,0.080454,62169.0,62168.0,0.06353205]
[1728403454959,0.080455,62168.0,62167.0,0.080455]
[1728403455162,0.080455,62168.0,62167.0,0.0636356]
[1728403455360,0.3608,62168.0,62167.0,0.06368337]
[1728403455567,1.44336,62168.0,62160.0,0.07941506]
[1728403455758,0.441264,62161.0,62159.0,0.07941506]
[1728403455957,0.080465,62160.0,62153.0,0.15988806]
[1728403456159,0.080465,62160.0,62154.0,0.07941506]
[1728403456160,0.080472,62155.0,62154.0,0.07941506]
[1728403456363,0.080465,62160.0,62153.0,0.080473]
[1728403456364,0.080473,62154.0,62153.0,0.080473]
[1728403456571,0.080473,62154.0,62153.0,0.20231012]
[1728403456760,0.3608,62161.0,62153.0,0.12183731]
[1728403456955,0.080472,62155.0,62154.0,0.07965657]
[1728403457269,0.441272,62155.0,62154.0,0.001]
[1728403457461,0.482972,62155.0,62154.0,0.001]
[1728403457661,0.672972,62155.0,62154.0,0.001]
[1728403457862,0.080473,62154.0,62153.0,0.001]
[1728403458164,0.873153,62154.0,62153.0,0.001]
[1728403458359,0.48268,62154.0,62143.0,0.07965657]
[1728403458566,0.3608,62144.0,62143.0,0.080486]
[1728403458771,0.441286,62144.0,62143.0,0.12246758]
[1728403459175,0.3608,62144.0,62143.0,0.12246758]
[1728403459372,0.3608,62144.0,62143.0,0.28231683]
[1728403459570,0.30440771,62144.0,62143.0,0.28231683]
[1728403459770,0.30440771,62144.0,62143.0,0.28327683]
[1728403459979,0.30440771,62144.0,62143.0,0.08070887]
[1728403460273,0.30440771,62144.0,62143.0,0.001]
[1728403460486,0.49440771,62144.0,62143.0,0.081487]
[1728403460682,0.49440771,62144.0,62143.0,0.20418182]
[1728403461080,0.41385007,62144.0,62143.0,0.20418182]
[1728403461278,0.19,62144.0,62143.0,0.56498182]
[1728403461579,0.080476,62152.0,62151.0,0.080477]
[1728403461980,0.270476,62152.0,62151.0,0.080477]
[1728403462785,0.080479,62150.0,62145.0,0.07972364]
[1728403462986,0.080483,62146.0,62143.0,0.44152364]
[1728403463175,0.080483,62146.0,62145.0,0.080485]
[1728403463978,0.080483,62146.0,62143.0,0.3608]
[1728403464185,0.31,62145.0,62143.0,0.07975103]
[1728403464378,0.080486,62144.0,62143.0,0.001]
[1728403464584,0.441286,62144.0,62143.0,0.001]
[1728403464781,0.3608,62144.0,62143.0,0.001]
[1728403464984,0.441286,62144.0,62143.0,0.001]
[1728403465581,0.080499,62134.0,62133.0,0.07975103]
[1728403465781,0.080502,62132.0,62131.0,0.080502]
[1728403465987,0.31,62132.0,62130.0,0.07975103]
[1728403466187,0.3608,62134.0,62133.0,0.0805]
[1728403466581,0.3608,62134.0,62133.0,0.20170581]
[1728403466886,0.5508,62134.0,62133.0,0.20170581]
[1728403467085,0.5508,62134.0,62133.0,0.20165148]
[1728403467583,0.028,62144.0,62133.0,0.62633918]
[1728403467785,0.014,62144.0,62139.0,0.14319761]
[1728403467985,0.0867,62158.0,62094.0,0.17533244]
[1728403467986,0.28094412,62120.0,62094.0,0.17533244]
[1728403468183,0.008,62134.0,62077.0,0.063573]
[1728403468184,0.7216,62095.0,62077.0,0.063573]
[1728403468383,0.3608,62083.0,62077.0,0.063573]
[1728403468584,0.080561,62086.0,62078.0,0.563811]
[1728403468791,0.3608,62090.0,62084.0,0.080564]
[1728403468987,0.3608,62090.0,62080.0,0.3608]
[1728403469190,0.31,62100.0,62085.0,0.3608]
[1728403469396,0.3608,62102.0,62094.0,0.3608]
[1728403469581,0.3608,62102.0,62101.0,0.080542]
[1728403469785,0.6708,62102.0,62101.0,0.080542]
[1728403469999,0.3608,62102.0,62101.0,0.080542]
[1728403471088,0.3698,62102.0,62101.0,0.080542]
[1728403472098,0.3698,62102.0,62101.0,0.563622]
[1728403472396,0.3788,62102.0,62101.0,0.563622]
[1728403472897,0.3788,62102.0,62101.0,1.163622]
[1728403473695,0.3788,62102.0,62101.0,0.563622]
[1728403474093,0.3788,62102.0,62101.0,1.163622]
[1728403474891,0.080528,62112.0,62111.0,0.080529]
[1728403475082,0.441328,62112.0,62111.0,0.080529]
[1728403475893,0.3608,62112.0,62111.0,0.080529]
[1728403476090,0.3748,62112.0,62111.0,0.080529]
[1728403476498,0.3888,62112.0,62111.0,0.081529]
[1728403477087,0.469327,62112.0,62111.0,0.081529]
[1728403478486,0.3888,62112.0,62111.0,0.081529]
[1728403478688,0.469327,62112.0,62111.0,0.081529]
[1728403479495,0.3888,62112.0,62111.0,0.081529]
[1728403482101,0.469327,62112.0,62111.0,0.081529]
[1728403482593,0.3888,62112.0,62111.0,0.081529]
[1728403482792,0.469327,62112.0,62111.0,0.081529]
[1728403483094,0.3888,62112.0,62111.0,0.081529]
[1728403483496,0.34044124,62112.0,62111.0,0.081529]
[1728403483694,0.42096824,62112.0,62111.0,0.081529]
[1728403483891,0.34044124,62112.0,62111.0,0.081529]
[1728403485202,0.42096824,62112.0,62111.0,0.081529]
[1728403485891,0.43053875,62112.0,62111.0,0.081529]
[1728403486094,0.42096824,62112.0,62111.0,0.001]
[1728403486295,1.42344124,62112.0,62101.0,0.080541]
[1728403486604,0.751339,62103.0,62101.0,0.080541]
[1728403486798,0.751339,62103.0,62093.0,0.3608]
[1728403487000,0.751339,62103.0,62100.0,0.080543]
[1728403487201,0.751339,62103.0,62101.0,0.080541]
[1728403487505,0.751339,62103.0,62102.0,0.0433]
[1728403487713,0.751339,62103.0,62102.0,0.002]
[1728403488504,0.760339,62103.0,62102.0,0.002]
[1728403489107,0.760339,62103.0,62102.0,0.001]
[1728403489298,0.769339,62103.0,62102.0,0.002]
[1728403491302,0.3788,62103.0,62102.0,0.08254]
[1728403493606,0.3788,62103.0,62102.0,0.19457666]
[1728403493796,0.3608,62122.0,62102.0,1.63845666]
[1728403493998,0.080519,62120.0,62119.0,0.080518]
[1728403494401,0.3608,62122.0,62121.0,0.080516]
[1728403494712,0.080507,62128.0,62121.0,0.390516]
[1728403495006,0.3608,62137.0,62133.0,0.0805]
[1728403495716,0.441296,62137.0,62136.0,0.080496]
[1728403496019,0.3608,62137.0,62136.0,0.080496]
[1728403496707,0.3608,62137.0,62136.0,0.563296]
[1728403497019,0.3608,62148.0,62136.0,0.59454311]
[1728403497204,0.080487,62144.0,62143.0,0.080487]
[1728403498696,0.37045144,62148.0,62142.0,0.3608]
[1728403498902,0.080482,62147.0,62146.0,0.080483]
[1728403499304,0.3608,62148.0,62147.0,0.080482]
[1728403499502,0.441281,62148.0,62147.0,0.080482]
[1728403500305,0.080482,62147.0,62146.0,0.001]
[1728403500607,0.080482,62147.0,62146.0,0.081483]
[1728403501003,0.080496,62136.0,62135.0,0.3624]
[1728403501202,0.751296,62136.0,62131.0,0.08013363]
[1728403501397,0.080503,62131.0,62130.0,0.0829182]
[1728403501806,0.080503,62131.0,62130.0,0.0024142]
[1728403502011,0.080507,62129.0,62124.0,0.45067143]
[1728403502214,0.6708,62136.0,62133.0,0.0805]
[1728403502215,0.045,62134.0,62133.0,0.0805]
[1728403502412,0.080501,62133.0,62132.0,0.0805]
[1728403502911,0.6708,62136.0,62130.0,0.002]
[1728403503107,0.080499,62134.0,62133.0,0.0805]
[1728403503310,0.008,62134.0,62133.0,0.0815]
[1728403504110,0.088499,62134.0,62133.0,0.0815]
[1728403504421,0.008,62134.0,62133.0,0.0815]
[1728403504607,0.009,62134.0,62133.0,0.0825]
[1728403505409,0.011,62133.0,62132.0,0.081502]
[1728403506012,0.01,62134.0,62133.0,0.0815]
[1728403506513,0.3608,62141.0,62140.0,0.080491]
[1728403506719,0.44129,62141.0,62140.0,0.080491]
[1728403507917,0.3618,62141.0,62140.0,0.080491]
[1728403508515,0.3608,62141.0,62140.0,0.081491]
[1728403508720,0.3618,62141.0,62140.0,0.081491]
[1728403509015,0.3738,62141.0,62140.0,0.082491]
[1728403509313,0.013,62141.0,62140.0,0.443291]
[1728403509520,0.080477,62151.0,62150.0,0.080474]
[1728403509826,0.31,62165.0,62154.0,0.080473]
[1728403509827,0.080473,62155.0,62154.0,0.080473]
[1728403510012,0.3608,62158.0,62150.0,0.31]
[1728403510213,0.09024209,62162.0,62157.0,0.080469]
[1728403510418,0.080463,62162.0,62151.0,0.0454]
[1728403510712,0.00973477,62165.0,62164.0,0.08046]
[1728403511017,0.080459,62165.0,62164.0,0.08046]
[1728403511216,0.080455,62168.0,62160.0,0.31]
[1728403511521,0.3608,62171.0,62160.0,0.31]
[1728403511726,0.3608,62171.0,62170.0,0.080452]
[1728403511925,0.3608,62171.0,62166.0,0.080457]
[1728403512319,0.080456,62167.0,62166.0,0.080457]
[1728403512620,0.3608,62171.0,62170.0,0.080452]
[1728403512820,0.001,62171.0,62170.0,0.081452]
[1728403513020,0.081451,62171.0,62170.0,0.081452]
[1728403513222,0.001,62171.0,62170.0,0.081452]
[1728403513525,0.3608,62173.0,62172.0,0.08045]
[1728403514022,0.00088,62183.0,62171.0,0.31]
[1728403514228,0.080439,62181.0,62177.0,0.080443]
[1728403514615,0.08993219,62181.0,62177.0,0.080443]
[1728403514812,0.080439,62181.0,62177.0,0.080443]
[1728403515222,0.09005141,62183.0,62177.0,0.080443]
[1728403515524,0.08043,62188.0,62187.0,0.080428]
[1728403515746,0.080425,62191.0,62183.0,0.080435]
[1728403516029,0.3608,62192.0,62182.0,0.31]
[1728403516328,0.3608,62192.0,62180.0,0.3608]
[1728403516329,0.3608,62192.0,62191.0,0.080425]
[1728403516831,0.080422,62194.0,62193.0,0.080423]
[1728403517628,0.3608,62197.0,62196.0,0.080419]
[1728403518037,0.441217,62197.0,62196.0,0.080419]
[1728403518324,0.080421,62194.0,62193.0,0.001]
[1728403518630,0.391421,62194.0,62193.0,0.002]
[1728403519328,0.390381,62194.0,62193.0,0.001]
[1728403519723,0.08044,62180.0,62178.0,0.080441]
[1728403519928,0.080441,62179.0,62178.0,0.080441]
[1728403520117,0.31,62183.0,62173.0,0.3608]
[1728403520324,0.080443,62177.0,62175.0,0.080446]
[1728403520518,0.31,62183.0,62175.0,0.080446]
[1728403520832,0.3608,62185.0,62173.0,0.3608]
[1728403521126,0.3608,62185.0,62184.0,0.080434]
[1728403521328,0.3608,62185.0,62180.0,0.080439]
[1728403521629,0.080442,62178.0,62177.0,0.080443]
[1728403522424,0.3618,62185.0,62177.0,0.31]
[1728403522625,0.3618,62185.0,62184.0,0.080434]
[1728403522831,0.3608,62185.0,62184.0,0.080434]
[1728403523021,0.3628,62185.0,62184.0,0.081434]
[1728403523229,0.3628,62185.0,62184.0,1.163874]
[1728403523534,0.3608,62192.0,62191.0,0.080425]
[1728403524339,0.3608,62204.0,62200.0,0.080411]
[1728403524534,0.080412,62201.0,62200.0,0.080411]
[1728403525928,0.001,62201.0,62200.0,0.081411]
[1728403526325,0.001,62201.0,62200.0,0.001]
[1728403526631,0.001,62201.0,62200.0,0.082413]
[1728403527832,0.081412,62201.0,62200.0,0.082413]
[1728403528229,0.001,62201.0,62200.0,0.082413]
[1728403528835,0.081412,62201.0,62200.0,0.082413]
[1728403529637,0.391412,62201.0,62200.0,0.002]
[1728403530435,0.40101205,62201.0,62200.0,0.002]
[1728403531842,0.40101205,62201.0,62200.0,0.082413]
[1728403531843,0.081412,62201.0,62200.0,0.082413]
[1728403532044,0.001,62201.0,62200.0,0.082413]
[1728403535540,0.3608,62204.0,62203.0,0.08041]
[1728403535739,0.080404,62208.0,62207.0,0.080404]
[1728403536936,0.3608,62217.0,62214.0,0.080393]
[1728403537137,0.3276,62239.0,62216.0,0.31]
[1728403537138,0.3608,62223.0,62216.0,0.31]
[1728403537344,0.080385,62222.0,62221.0,0.390385]
[1728403537540,0.080385,62222.0,62221.0,0.080385]
[1728403538135,0.3608,62223.0,62222.0,0.080385]
[1728403538445,0.3608,62223.0,62222.0,0.390385]
[1728403539345,0.3608,62223.0,62222.0,0.391385]
[1728403539551,0.3608,62223.0,62222.0,0.392385]
[1728403540138,0.080359,62243.0,62222.0,0.392385]
[1728403540139,0.00084,62248.0,62222.0,1.75946]
[1728403540333,0.3608,62256.0,62245.0,0.390355]
[1728403540334,0.080355,62246.0,62245.0,0.390355]
[1728403540853,0.13345848,62250.0,62249.0,0.08035]
[1728403541144,0.0436,62250.0,62249.0,0.08035]
[1728403541349,0.123949,62250.0,62249.0,0.08035]
[1728403541740,0.1334315,62250.0,62249.0,0.08035]
[1728403542138,0.0530825,62250.0,62249.0,0.08035]
[1728403542341,0.4341,62256.0,62255.0,0.080342]
[1728403542342,0.0733,62256.0,62255.0,0.080342]
[1728403542540,0.0354,62256.0,62255.0,0.390342]
[1728403543046,0.115741,62256.0,62255.0,0.390342]
[1728403543845,0.115741,62256.0,62255.0,0.391342]
[1728403544246,0.115741,62256.0,62255.0,0.001]
[1728403544454,0.115741,62256.0,62255.0,0.002]
[1728403544752,0.115741,62256.0,62248.0,0.080351]
[1728403545246,0.08035,62250.0,62248.0,0.080351]
[1728403545949,0.08035,62250.0,62248.0,0.081351]
[1728403546148,0.08035,62250.0,62248.0,0.082351]
[1728403546537,0.080344,62254.0,62249.0,0.31]
[1728403546742,0.0354,62256.0,62249.0,0.31]
[1728403547145,0.080348,62251.0,62250.0,0.080348]
[1728403547449,0.080348,62251.0,62248.0,0.002]
[1728403547450,0.080349,62251.0,62248.0,0.002]
[1728403547652,0.080344,62254.0,62251.0,0.080346]
[1728403547846,0.0354,62256.0,62254.0,0.080343]
[1728403548047,0.0354,62256.0,62255.0,0.31]
[1728403548247,0.001,62254.0,62250.0,0.31]
[1728403548448,0.080348,62251.0,62250.0,0.31]
[1728403548648,0.082348,62251.0,62250.0,0.31]
[1728403549146,0.080348,62251.0,62250.0,0.31]
[1728403549647,0.080308,62251.0,62250.0,0.31]
[1728403549847,0.082308,62251.0,62250.0,0.311]
[1728403550247,0.082308,62251.0,62250.0,0.391349]
[1728403550556,0.002,62251.0,62250.0,0.391349]
[1728403550854,0.082348,62251.0,62250.0,0.311]
[1728403551150,0.082348,62251.0,62244.0,0.3608]
[1728403551151,0.080355,62246.0,62244.0,0.441156]
[1728403551352,0.0421,62245.0,62244.0,0.441156]
[1728403552555,0.0431,62245.0,62244.0,0.442156]
[1728403554950,0.123455,62245.0,62244.0,0.442156]
[1728403557753,0.0431,62245.0,62244.0,0.442156]